[Event "WSCC 50 Open 2017"]
[Site "?"]
[Date "2017.11.16"]
[Round "9"]
[White "Reprintsev, Alexander"]
[Black "Mantovani, Renzo"]
[Result "1-0"]
[ECO "B06"]
[WhiteElo "2361"]
[BlackElo "2307"]
[PlyCount "67"]
[EventDate "2017.??.??"]
[EventType "swiss"]
[EventCountry "ITA"]
[SourceTitle "Acqui Terme"]
[TimeControl "40/5400+30:1800+30"]
[WhiteClock "0:50:19"]
[BlackClock "0:01:13"]

1. e4 {[%emt 0:03:08]} g6 {[%emt 0:00:18]} 2. Nc3 {[%emt 0:00:06]} c5 {[%emt 0:01:57]} 3. d3 {[%emt 0:01:40]} d6 {[%emt 0:01:51]} 4. Be3 {[%emt 0:00:42]} Nf6 {[%emt 0:00:36]} 5. Qd2 {[%emt 0:00:46]} Ng4 {[%emt 0:03:14]} 6. Bg5 {[%emt 0:00:14]} h6 {[%emt 0:01:34]} 7. Bh4 {[%emt 0:00:06]} Bg7 {[%emt 0:02:35]} 8. f4 {[%emt 0:01:21]} Nc6 {[%emt 0:03:21]} 9. Nf3 {[%emt 0:00:16]} O-O {[%emt 0:04:07]} 10. h3 {[%emt 0:00:24]} Nf6 {[%emt 0:00:14]} 11. g4 {[%emt 0:00:24]} Rb8 {[%emt 0:06:44]} 12. Bg2 {[%emt 0:00:10]} b5 {[%emt 0:04:12]} 13. O-O {[%emt 0:00:14]} b4 {[%emt 0:05:42]} 14. Ne2 {[%emt 0:01:28]} a5 {[%emt 0:15:38]} 15. Bg3 {[%emt 0:07:26]} c4 {[%emt 0:12:39]} 16. f5 {[%emt 0:03:29]} gxf5 {[%emt 0:04:37]} 17. exf5 {[%emt 0:02:51]} cxd3 {[%emt 0:01:31]} 18. cxd3 {[%emt 0:00:06]} Rb5 {[%emt 0:06:44]} 19. Bf4 {[%emt 0:03:21]} h5 {[%emt 0:06:15]} 20. Bh6 {[%emt 0:02:45]} hxg4 {[%emt 0:02:54]} 21. Qg5 {[%emt 0:03:15]} Ne8 {[%emt 0:00:12]} 22. hxg4 {[%emt 0:00:20]} e6 {[%emt 0:02:10]} 23. Bxg7 {[%emt 0:00:09]} Nxg7 {[%emt 0:00:58]} 24. Qh6 {[%emt 0:01:50]} f6 {[%emt 0:02:47]} 25. Nf4 {[%emt 0:02:42]} exf5 {[%emt 0:01:52]} 26. g5 {[%emt 0:00:48]} Rb7 {[%emt 0:04:15]} 27. d4 {[%emt 0:06:40]} Qb6 {[%emt 0:01:14]} 28. Nd5 {[%emt 0:00:40]} Qa7 {[%emt 0:00:30]} 29. Nxf6+ {[%emt 0:02:21]} Kf7 {[%emt 0:01:19]} 30. Rad1 {[%emt 0:00:52]} Ne5 {[%emt 0:01:29]} 31. Nxe5+ {[%emt 0:03:23]} dxe5 {[%emt 0:00:03]} 32. Bd5+ {[%emt 0:00:12]} Be6 {[%emt 0:00:54]} 33. Nh5 {[%emt 0:02:13]} Ke8 {[%emt 0:01:21]} 34. Nxg7+ {[%emt 0:00:19]} 1-0

[Event "WSCC 50 Open 2017"]
[Site "?"]
[Date "2017.11.16"]
[Round "9"]
[White "Jhunjhnuwala, Krishan"]
[Black "Biro, Sandor"]
[Result "1/2-1/2"]
[ECO "B00"]
[WhiteElo "2340"]
[BlackElo "2168"]
[PlyCount "112"]
[EventDate "2017.??.??"]
[EventType "swiss"]
[EventCountry "ITA"]
[SourceTitle "Acqui Terme"]
[TimeControl "40/5400+30:1800+30"]
[WhiteClock "0:21:40"]
[BlackClock "0:27:45"]

1. e4 {[%emt 0:00:00]} Nc6 {[%emt 0:02:30]} 2. d4 {[%emt 0:00:40]} d5 {[%emt 0:00:10]} 3. e5 {[%emt 0:00:57]} f6 {[%emt 0:00:07]} 4. f4 {[%emt 0:00:50]} fxe5 {[%emt 0:12:19]} 5. fxe5 {[%emt 0:00:26]} Bf5 {[%emt 0:01:49]} 6. Nf3 {[%emt 0:01:55]} e6 {[%emt 0:04:05]} 7. Bb5 {[%emt 0:04:24]} Nge7 {[%emt 0:10:20]} 8. O-O {[%emt 0:00:45]} h6 {[%emt 0:11:22]} 9. Nh4 {[%emt 0:17:59]} Bh7 {[%emt 0:01:01]} 10. Qf3 {[%emt 0:05:49]} Kd7 {[%emt 0:06:06]} 11. c4 {[%emt 0:06:01]} Kc8 {[%emt 0:09:09]} 12. Be3 {[%emt 0:05:18]} Nb4 {[%emt 0:07:03]} 13. Na3 {[%emt 0:06:13]} Kb8 {[%emt 0:06:48]} 14. Rac1 {[%emt 0:09:12]} a6 {[%emt 0:02:48]} 15. Ba4 {[%emt 0:00:47]} g5 {[%emt 0:00:33]} 16. Qf6 {[%emt 0:02:56]} Rg8 {[%emt 0:00:37]} 17. Nf3 {[%emt 0:03:14]} dxc4 {[%emt 0:06:13]} 18. Qxe6 {[%emt 0:01:41]} Nbd5 {[%emt 0:00:26]} 19. Bc2 {[%emt 0:09:44]} Nxe3 {[%emt 0:02:32]} 20. Bxh7 {[%emt 0:00:06]} Rg7 {[%emt 0:00:41]} 21. Rfe1 {[%emt 0:00:36]} N7d5 {[%emt 0:04:06]} 22. Be4 {[%emt 0:01:36]} Nf4 {[%emt 0:01:40]} 23. Qf6 {[%emt 0:01:08]} Qxf6 {[%emt 0:04:33]} 24. exf6 {[%emt 0:00:06]} Nexg2 {[%emt 0:00:11]} 25. fxg7 {[%emt 0:00:15]} Bxg7 {[%emt 0:00:12]} 26. Red1 {[%emt 0:00:51]} Ka7 {[%emt 0:02:00]} 27. Nxc4 {[%emt 0:00:49]} g4 {[%emt 0:01:21]} 28. Nfe5 {[%emt 0:01:05]} Nh4 {[%emt 0:00:19]} 29. Rd2 {[%emt 0:00:54]} Rf8 {[%emt 0:00:48]} 30. Bg2 {[%emt 0:03:58]} Nhxg2 {[%emt 0:01:25]} 31. Rxg2 {[%emt 0:00:06]} Nh3+ {[%emt 0:01:35]} 32. Kh1 {[%emt 0:00:05]} Nf2+ {[%emt 0:00:07]} 33. Rxf2 {[%emt 0:00:47]} Rxf2 {[%emt 0:00:05]} 34. Nxg4 {[%emt 0:00:42]} Rf4 {[%emt 0:00:15]} 35. Nce5 {[%emt 0:03:43]} Rxd4 {[%emt 0:00:41]} 36. Rxc7 {[%emt 0:00:42]} Rd1+ {[%emt 0:00:16]} 37. Kg2 {[%emt 0:00:05]} Rd2+ {[%emt 0:00:13]} 38. Kg3 {[%emt 0:00:13]} Bxe5+ {[%emt 0:00:48]} 39. Nxe5 {[%emt 0:00:04]} Rxb2 {[%emt 0:00:07]} 40. a4 {[%emt 0:01:06]} Rb3+ {[%emt 0:31:23]} 41. Kh4 {[%emt 0:33:12]} Kb6 {[%emt 0:00:21]} 42. Rc4 {[%emt 0:03:11]} Ka5 {[%emt 0:00:18]} 43. Kg4 {[%emt 0:00:00]} Rb4 {[%emt 0:00:00]} 44. Kh5 {[%emt 0:00:00]} Kxa4 {[%emt 0:00:00]} 45. Kxh6 {[%emt 0:00:00]} Rxc4 {[%emt 0:00:00]} 46. Nxc4 {[%emt 0:00:00]} b5 {[%emt 0:00:00]} 47. Nd2 {[%emt 0:00:00]} Kb4 {[%emt 0:00:00]} 48. h4 {[%emt 0:00:00]} a5 {[%emt 0:00:00]} 49. h5 {[%emt 0:00:00]} a4 {[%emt 0:00:00]} 50. Nb1 {[%emt 0:00:00]} a3 {[%emt 0:00:00]} 51. Nxa3 {[%emt 0:00:00]} Kxa3 {[%emt 0:00:00]} 52. Kg5 {[%emt 0:00:00]} b4 {[%emt 0:00:00]} 53. h6 {[%emt 0:00:00]} b3 {[%emt 0:00:00]} 54. h7 {[%emt 0:00:00]} b2 {[%emt 0:00:00]} 55. h8=Q {[%emt 0:00:00]} b1=Q {[%emt 0:00:00]} 56. Qa8+ {[%emt 0:00:00]} Kb2 {[%emt 0:00:00]} 1/2-1/2

[Event "WSCC 50 Open 2017"]
[Site "?"]
[Date "2017.11.16"]
[Round "9"]
[White "Petran, Peter"]
[Black "Grant, Jonathan I M"]
[Result "0-1"]
[ECO "A00"]
[WhiteElo "2330"]
[BlackElo "2179"]
[PlyCount "78"]
[EventDate "2017.??.??"]
[EventType "swiss"]
[EventCountry "ITA"]
[SourceTitle "Acqui Terme"]
[TimeControl "40/5400+30:1800+30"]
[WhiteClock "0:05:30"]
[BlackClock "0:03:38"]

1. g3 {[%emt 0:00:52]} c5 {[%emt 0:01:00]} 2. Bg2 {[%emt 0:00:30]} Nc6 {[%emt 0:00:18]} 3. e4 {[%emt 0:04:25]} g6 {[%emt 0:00:25]} 4. Ne2 {[%emt 0:00:45]} Bg7 {[%emt 0:00:15]} 5. c3 {[%emt 0:00:28]} e5 {[%emt 0:01:04]} 6. d3 {[%emt 0:00:15]} Nge7 {[%emt 0:01:34]} 7. Be3 {[%emt 0:00:06]} d6 {[%emt 0:09:06]} 8. O-O {[%emt 0:00:17]} O-O {[%emt 0:01:41]} 9. d4 {[%emt 0:00:06]} cxd4 {[%emt 0:03:41]} 10. cxd4 {[%emt 0:00:07]} d5 {[%emt 0:00:54]} 11. Nbc3 {[%emt 0:01:02]} Bg4 {[%emt 0:05:49]} 12. f3 {[%emt 0:09:15]} dxe4 {[%emt 0:09:41]} 13. fxg4 {[%emt 0:08:21]} exd4 {[%emt 0:00:38]} 14. Nxd4 {[%emt 0:00:13]} Nxd4 {[%emt 0:09:10]} 15. Nxe4 {[%emt 0:02:30]} Nec6 {[%emt 0:09:02]} 16. g5 {[%emt 0:04:38]} Nf5 {[%emt 0:01:54]} 17. Bc5 {[%emt 0:00:49]} Bd4+ {[%emt 0:14:22]} 18. Bxd4 {[%emt 0:00:19]} Qxd4+ {[%emt 0:00:30]} 19. Qxd4 {[%emt 0:03:08]} Ncxd4 {[%emt 0:01:26]} 20. Rf2 {[%emt 0:03:11]} Kg7 {[%emt 0:06:55]} 21. Nc5 {[%emt 0:05:03]} Rac8 {[%emt 0:05:08]} 22. Nxb7 {[%emt 0:00:31]} Ne6 {[%emt 0:02:57]} 23. h4 {[%emt 0:14:45]} Rc7 {[%emt 0:03:03]} 24. Rd1 {[%emt 0:06:57]} Ne3 {[%emt 0:00:44]} 25. Rd3 {[%emt 0:18:27]} Nxg2 {[%emt 0:00:24]} 26. Nd6 {[%emt 0:01:27]} Ne1 {[%emt 0:00:22]} 27. Rd1 {[%emt 0:00:59]} Nc2 {[%emt 0:00:52]} 28. Nb5 {[%emt 0:01:23]} Rc5 {[%emt 0:02:22]} 29. Nxa7 {[%emt 0:00:52]} Ncd4 {[%emt 0:01:09]} 30. a4 {[%emt 0:01:50]} Ra5 {[%emt 0:01:06]} 31. Nb5 {[%emt 0:00:31]} Nxb5 {[%emt 0:00:25]} 32. axb5 {[%emt 0:00:05]} Rxb5 {[%emt 0:01:43]} 33. Rd7 {[%emt 0:00:19]} Rc5 {[%emt 0:03:21]} 34. b4 {[%emt 0:05:32]} Rc7 {[%emt 0:02:04]} 35. Rxc7 {[%emt 0:02:27]} Nxc7 {[%emt 0:00:01]} 36. Rb2 {[%emt 0:00:09]} Rb8 {[%emt 0:00:24]} 37. Kf2 {[%emt 0:00:31]} Rb5 {[%emt 0:00:16]} 38. Ke2 {[%emt 0:00:47]} Na6 {[%emt 0:00:23]} 39. Kd3 {[%emt 0:00:08]} Rxb4 {[%emt 0:00:13] Kd4} 0-1

[Event "WSCC 50 Open 2017"]
[Site "?"]
[Date "2017.11.16"]
[Round "9"]
[White "Welling, Gerard"]
[Black "Larsen, Peter"]
[Result "1-0"]
[ECO "A48"]
[WhiteElo "2316"]
[BlackElo "2286"]
[PlyCount "101"]
[EventDate "2017.??.??"]
[EventType "swiss"]
[EventCountry "ITA"]
[SourceTitle "Acqui Terme"]
[TimeControl "40/5400+30:1800+30"]
[WhiteClock "0:48:26"]
[BlackClock "0:19:50"]

1. d4 {[%emt 0:00:00]} Nf6 {[%emt 0:03:09]} 2. Nf3 {[%emt 0:00:17]} g6 {[%emt 0:00:12]} 3. Nc3 {[%emt 0:03:10]} d5 {[%emt 0:02:40]} 4. Bf4 {[%emt 0:00:25]} Bg7 {[%emt 0:01:52]} 5. e3 {[%emt 0:00:41]} O-O {[%emt 0:00:28]} 6. Be2 {[%emt 0:00:54]} c5 {[%emt 0:02:25]} 7. Ne5 {[%emt 0:01:32]} cxd4 {[%emt 0:00:14]} 8. exd4 {[%emt 0:00:04]} Nc6 {[%emt 0:06:13]} 9. O-O {[%emt 0:01:18]} Qb6 {[%emt 0:01:25]} 10. Nxc6 {[%emt 0:00:34]} Qxc6 {[%emt 0:00:50]} 11. Re1 {[%emt 0:06:36]} e6 {[%emt 0:03:28]} 12. Bb5 {[%emt 0:14:15]} Qb6 {[%emt 0:00:05]} 13. a4 {[%emt 0:00:05]} Ne4 {[%emt 0:21:57]} 14. a5 {[%emt 0:04:11]} Qxd4 {[%emt 0:07:51]} 15. Qxd4 {[%emt 0:01:20]} Bxd4 {[%emt 0:00:03]} 16. Nxe4 {[%emt 0:00:09]} dxe4 {[%emt 0:00:04]} 17. c3 {[%emt 0:02:05]} Bf6 {[%emt 0:06:57]} 18. Bc7 {[%emt 0:02:39]} e5 {[%emt 0:03:39]} 19. Rxe4 {[%emt 0:01:37]} Bf5 {[%emt 0:00:08]} 20. Ree1 {[%emt 0:01:16]} Rfc8 {[%emt 0:06:03]} 21. Bxe5 {[%emt 0:00:25]} Rc5 {[%emt 0:00:05]} 22. Bxf6 {[%emt 0:00:05]} Rxb5 {[%emt 0:00:02]} 23. b4 {[%emt 0:00:17]} Be6 {[%emt 0:01:53]} 24. Rad1 {[%emt 0:02:58]} Rf5 {[%emt 0:03:24]} 25. Bd4 {[%emt 0:00:23]} Rd5 {[%emt 0:01:33]} 26. Bc5 {[%emt 0:00:33]} Rxd1 {[%emt 0:01:56]} 27. Rxd1 {[%emt 0:00:02]} a6 {[%emt 0:02:58]} 28. Rd6 {[%emt 0:03:31]} g5 {[%emt 0:04:56]} 29. h3 {[%emt 0:00:47]} Rc8 {[%emt 0:01:37]} 30. Kh2 {[%emt 0:03:39]} h6 {[%emt 0:02:39]} 31. g4 {[%emt 0:02:15]} Kh7 {[%emt 0:00:50]} 32. Kg3 {[%emt 0:00:23]} Rc6 {[%emt 0:05:37]} 33. Rd2 {[%emt 0:01:51]} Kg6 {[%emt 0:00:48]} 34. h4 {[%emt 0:01:51]} h5 {[%emt 0:01:09]} 35. gxh5+ {[%emt 0:01:29]} Kxh5 {[%emt 0:00:01]} 36. hxg5 {[%emt 0:00:09]} Kxg5 {[%emt 0:00:05]} 37. Rd4 {[%emt 0:01:53]} Rc7 {[%emt 0:02:05]} 38. Re4 {[%emt 0:02:43]} Kf5 {[%emt 0:00:23]} 39. Rf4+ {[%emt 0:00:57]} Ke5 {[%emt 0:00:53]} 40. f3 {[%emt 0:07:29]} Rd7 {[%emt 0:31:16]} 41. Re4+ {[%emt 0:33:20]} Kf5 {[%emt 0:03:49]} 42. Bd4 {[%emt 0:02:28]} Rd8 {[%emt 0:02:10]} 43. Rf4+ {[%emt 0:03:03]} Kg6 {[%emt 0:00:37]} 44. Rf6+ {[%emt 0:00:08]} Kh7 {[%emt 0:01:28]} 45. Rf4 {[%emt 0:03:37]} Kg6 {[%emt 0:00:00]} 46. Rh4 {[%emt 0:00:00]} Kg5 {[%emt 0:00:00]} 47. Be3+ {[%emt 0:00:00]} Kg6 {[%emt 0:00:00]} 48. Rh6+ {[%emt 0:00:00]} Kg7 {[%emt 0:00:00]} 49. Rh5 {[%emt 0:00:00]} Rd3 {[%emt 0:00:00]} 50. Bd4+ {[%emt 0:00:00]} Kf8 {[%emt 0:00:00]} 51. Bf6 {[%emt 0:00:00]} 1-0

[Event "WSCC 50 Open 2017"]
[Site "?"]
[Date "2017.11.16"]
[Round "9"]
[White "Prasad, Devaki V"]
[Black "Sarno, Spartaco"]
[Result "1-0"]
[ECO "B09"]
[WhiteElo "2290"]
[BlackElo "2327"]
[PlyCount "47"]
[EventDate "2017.??.??"]
[EventType "swiss"]
[EventCountry "ITA"]
[SourceTitle "Acqui Terme"]
[TimeControl "40/5400+30:1800+30"]
[WhiteClock "0:20:20"]
[BlackClock "0:13:33"]

1. e4 {[%emt 0:00:00]} d6 {[%emt 0:02:44]} 2. d4 {[%emt 0:00:00]} Nf6 {[%emt 0:00:06]} 3. Nc3 {[%emt 0:00:00]} g6 {[%emt 0:00:05]} 4. f4 {[%emt 0:00:00]} Bg7 {[%emt 0:00:05]} 5. Nf3 {[%emt 0:00:02]} O-O {[%emt 0:02:15]} 6. e5 {[%emt 0:00:16]} Nfd7 {[%emt 0:00:15]} 7. Bc4 {[%emt 0:00:29]} c5 {[%emt 0:04:26]} 8. e6 {[%emt 0:00:59]} Nb6 {[%emt 0:00:26]} 9. exf7+ {[%emt 0:00:17]} Kh8 {[%emt 0:00:04]} 10. Bd3 {[%emt 0:01:49]} cxd4 {[%emt 0:02:49]} 11. Ne4 {[%emt 0:00:15]} Nc6 {[%emt 0:05:42]} 12. h4 {[%emt 0:25:49]} Rxf7 {[%emt 0:25:05]} 13. Nfg5 {[%emt 0:07:02]} Rf8 {[%emt 0:03:53]} 14. h5 {[%emt 0:04:20]} h6 {[%emt 0:15:49]} 15. hxg6 {[%emt 0:00:39]} Qe8 {[%emt 0:03:00]} 16. Qh5 {[%emt 0:12:49]} Kg8 {[%emt 0:02:08]} 17. g4 {[%emt 0:15:28]} d5 {[%emt 0:00:53]} 18. Ne6 {[%emt 0:08:00]} Bxe6 {[%emt 0:01:57]} 19. f5 {[%emt 0:00:04]} Bxf5 {[%emt 0:04:25]} 20. gxf5 {[%emt 0:00:22]} dxe4 {[%emt 0:00:19]} 21. Bxh6 {[%emt 0:00:24]} e6 {[%emt 0:11:39]} 22. Bxg7 {[%emt 0:00:37]} Kxg7 {[%emt 0:00:11]} 23. Qh6+ {[%emt 0:01:43]} Kf6 {[%emt 0:00:11]} 24. g7+ {[%emt 0:00:16]} 1-0

[Event "WSCC 50 Open 2017"]
[Site "?"]
[Date "2017.11.16"]
[Round "9"]
[White "Kannenberg, Karl-Heinz"]
[Black "Buchal, Stephan"]
[Result "1/2-1/2"]
[ECO "B06"]
[WhiteElo "2216"]
[BlackElo "2347"]
[PlyCount "143"]
[EventDate "2017.??.??"]
[EventType "swiss"]
[EventCountry "ITA"]
[SourceTitle "Acqui Terme"]
[TimeControl "40/5400+30:1800+30"]
[WhiteClock "0:01:19"]
[BlackClock "0:01:33"]

1. d4 {[%emt 0:00:00]} g6 {[%emt 0:00:19]} 2. e4 {[%emt 0:00:05]} Bg7 {[%emt 0:00:23]} 3. Nc3 {[%emt 0:00:14]} d6 {[%emt 0:00:27]} 4. f4 {[%emt 0:00:34]} a6 {[%emt 0:01:48]} 5. Nf3 {[%emt 0:00:50]} b5 {[%emt 0:00:17]} 6. Bd3 {[%emt 0:01:44]} Nd7 {[%emt 0:00:23]} 7. e5 {[%emt 0:01:39]} c5 {[%emt 0:00:42]} 8. Be4 {[%emt 0:00:39]} Rb8 {[%emt 0:00:32]} 9. O-O {[%emt 0:02:40]} cxd4 {[%emt 0:02:29]} 10. Nxd4 {[%emt 0:00:40]} dxe5 {[%emt 0:00:38]} 11. Nc6 {[%emt 0:00:55]} Qb6+ {[%emt 0:00:12]} 12. Kh1 {[%emt 0:00:12]} Ngf6 {[%emt 0:00:28]} 13. Nxb8 {[%emt 0:01:28]} Qxb8 {[%emt 0:02:12]} 14. fxe5 Nxe5 15. Bf4 {[%emt 0:07:31]} O-O {[%emt 0:01:16]} 16. Bf3 {[%emt 0:02:56]} e6 {[%emt 0:07:07]} 17. Qe2 {[%emt 0:02:52]} Nfd7 {[%emt 0:02:14]} 18. a4 {[%emt 0:05:51]} bxa4 {[%emt 0:04:31]} 19. Nxa4 {[%emt 0:00:31]} Qb4 {[%emt 0:14:45]} 20. Bd2 {[%emt 0:02:14]} Qh4 {[%emt 0:06:46]} 21. Be1 {[%emt 0:04:21]} Qh6 {[%emt 0:05:48]} 22. Bb4 {[%emt 0:19:08]} Re8 {[%emt 0:12:12]} 23. Ba8 {[%emt 0:09:20]} f5 {[%emt 0:05:26]} 24. Bc3 {[%emt 0:08:56]} Ng4 {[%emt 0:04:33]} 25. h3 {[%emt 0:00:28]} Ne3 {[%emt 0:02:21]} 26. Bxg7 {[%emt 0:03:02]} Kxg7 {[%emt 0:05:03]} 27. Rfe1 {[%emt 0:02:28]} f4 {[%emt 0:00:55]} 28. Bc6 {[%emt 0:01:24]} Re7 {[%emt 0:03:16]} 29. b3 {[%emt 0:04:54]} e5 {[%emt 0:02:37]} 30. Kg1 {[%emt 0:03:16]} Nf6 {[%emt 0:01:19]} 31. c4 {[%emt 0:02:45]} Qg5 {[%emt 0:01:26]} 32. Kh1 {[%emt 0:01:06]} Nf5 {[%emt 0:05:27]} 33. Qb2 {[%emt 0:02:08]} Kh6 {[%emt 0:02:39]} 34. Nc3 {[%emt 0:01:44]} e4 {[%emt 0:03:12]} 35. Nd5 {[%emt 0:03:47]} Nxd5 {[%emt 0:02:10]} 36. Bxd5 {[%emt 0:00:17]} Ng3+ {[%emt 0:01:16]} 37. Kh2 {[%emt 0:01:29]} f3 {[%emt 0:01:14]} 38. Qf2 {[%emt 0:01:59]} Nf5 {[%emt 0:00:34]} 39. Rxe4 {[%emt 0:00:39]} Rxe4 {[%emt 0:00:01]} 40. Bxe4 {[%emt 0:02:27]} Qf4+ {[%emt 0:30:13]} 41. Kg1 {[%emt 0:30:27]} Qxe4 {[%emt 0:00:50]} 42. Qd2+ {[%emt 0:00:00]} g5 {[%emt 0:00:00]} 43. Re1 {[%emt 0:00:00]} Qc6 {[%emt 0:00:00]} 44. g4 {[%emt 0:00:00]} Nh4 {[%emt 0:00:00]} 45. Qd5 {[%emt 0:00:00]} Qf6 {[%emt 0:00:00]} 46. Kf1 {[%emt 0:00:00]} Ng6 {[%emt 0:00:00]} 47. Re3 {[%emt 0:00:00]} Qa1+ {[%emt 0:00:00]} 48. Kf2 {[%emt 0:00:00]} Qb2+ {[%emt 0:01:05]} 49. Kxf3 {[%emt 0:00:00]} Qf6+ {[%emt 0:01:26]} 50. Ke4 {[%emt 0:00:00]} Be6 {[%emt 0:01:15]} 51. Qd6 {[%emt 0:00:24]} Nf4 {[%emt 0:00:58]} 52. Qe5 {[%emt 0:00:38]} Qd8 {[%emt 0:01:01]} 53. h4 {[%emt 0:01:25]} Qa8+ {[%emt 0:00:36]} 54. Kd4 {[%emt 0:00:21]} Qd8+ {[%emt 0:00:23]} 55. Kc3 {[%emt 0:00:11]} Bxg4 {[%emt 0:00:19]} 56. b4 {[%emt 0:04:15]} Kg6 {[%emt 0:00:51]} 57. Qe4+ {[%emt 0:00:41]} Bf5 {[%emt 0:00:24]} 58. Qc6+ {[%emt 0:00:20]} Kh5 {[%emt 0:00:12]} 59. hxg5 {[%emt 0:00:33]} Qd1 {[%emt 0:00:30]} 60. Qf3+ {[%emt 0:00:55]} Qxf3 {[%emt 0:00:02]} 61. Rxf3 {[%emt 0:00:11]} Kxg5 {[%emt 0:00:03]} 62. c5 {[%emt 0:00:29]} Kg4 {[%emt 0:01:21]} 63. Rf1 {[%emt 0:00:30]} Bd7 {[%emt 0:01:01]} 64. Rg1+ {[%emt 0:00:30]} Kf5 {[%emt 0:00:05]} 65. Rg7 {[%emt 0:00:14]} Nd5+ {[%emt 0:00:43]} 66. Kd4 {[%emt 0:01:01]} Nf6 {[%emt 0:00:01]} 67. Rg1 {[%emt 0:00:19]} Ke6 {[%emt 0:00:45]} 68. Re1+ {[%emt 0:00:44]} Kf7 {[%emt 0:00:01]} 69. Ke5 {[%emt 0:00:28]} Ke7 {[%emt 0:00:22]} 70. Kd4+ {[%emt 0:00:29]} Kd8 {[%emt 0:00:18]} 71. Ke5 {[%emt 0:00:21]} Ke7 {[%emt 0:00:44]} 72. Kd4+ {[%emt 0:00:02]} 1/2-1/2

[Event "WSCC 50 Open 2017"]
[Site "?"]
[Date "2017.11.16"]
[Round "9"]
[White "Vebic, Kasem"]
[Black "Bagaturov, Giorgi"]
[Result "0-1"]
[ECO "A05"]
[WhiteElo "2118"]
[BlackElo "2399"]
[PlyCount "98"]
[EventDate "2017.??.??"]
[EventType "swiss"]
[EventCountry "ITA"]
[SourceTitle "Acqui Terme"]
[TimeControl "40/5400+30:1800+30"]
[WhiteClock "0:41:18"]
[BlackClock "0:03:02"]

1. Nf3 {[%emt 0:00:02]} Nf6 {[%emt 0:00:38]} 2. c4 {[%emt 0:00:28]} b6 {[%emt 0:01:44]} 3. g3 {[%emt 0:00:22]} Bb7 {[%emt 0:00:17]} 4. Bg2 {[%emt 0:00:11]} e6 {[%emt 0:02:53]} 5. O-O {[%emt 0:01:13]} Be7 {[%emt 0:00:10]} 6. Nc3 {[%emt 0:00:15]} O-O {[%emt 0:03:47]} 7. d4 {[%emt 0:00:28]} d5 {[%emt 0:00:19]} 8. Ne5 {[%emt 0:02:07]} Na6 {[%emt 0:01:26]} 9. e3 {[%emt 0:01:07]} c5 {[%emt 0:03:28]} 10. cxd5 {[%emt 0:02:59]} exd5 {[%emt 0:02:09]} 11. b3 {[%emt 0:01:40]} Nc7 {[%emt 0:09:47]} 12. Bb2 {[%emt 0:00:45]} Ne6 {[%emt 0:00:20]} 13. Ne2 {[%emt 0:00:24]} Bd6 {[%emt 0:18:18]} 14. h3 {[%emt 0:01:19]} Re8 {[%emt 0:07:11]} 15. g4 {[%emt 0:01:10]} cxd4 {[%emt 0:01:07]} 16. exd4 {[%emt 0:00:09]} Nxd4 {[%emt 0:00:34]} 17. Nxd4 {[%emt 0:00:30]} Bxe5 {[%emt 0:00:12]} 18. f4 {[%emt 0:00:33]} Bd6 {[%emt 0:06:13]} 19. g5 {[%emt 0:02:04]} Ne4 {[%emt 0:01:01]} 20. h4 {[%emt 0:01:00]} Bf8 {[%emt 0:07:36]} 21. h5 {[%emt 0:02:37]} g6 {[%emt 0:12:16]} 22. h6 {[%emt 0:03:47]} f6 {[%emt 0:00:28]} 23. f5 {[%emt 0:02:43]} Nxg5 {[%emt 0:01:10]} 24. Qd3 {[%emt 0:03:54]} Re4 {[%emt 0:06:34]} 25. fxg6 {[%emt 0:05:48]} hxg6 {[%emt 0:00:24]} 26. h7+ {[%emt 0:00:54]} Kxh7 {[%emt 0:00:44]} 27. Bxe4 {[%emt 0:01:38]} dxe4 {[%emt 0:00:26]} 28. Qd2 {[%emt 0:02:29]} Bd6 {[%emt 0:06:24]} 29. Qe3 {[%emt 0:02:33]} Qe7 {[%emt 0:01:44]} 30. Kg2 {[%emt 0:01:17]} Be5 {[%emt 0:02:42]} 31. Rh1+ {[%emt 0:02:23]} Kg7 {[%emt 0:00:06]} 32. Raf1 {[%emt 0:00:44]} Rd8 {[%emt 0:01:01]} 33. Rh4 {[%emt 0:02:23]} Bxd4 {[%emt 0:01:02]} 34. Bxd4 {[%emt 0:00:58]} Rxd4 {[%emt 0:00:21]} 35. Qxd4 {[%emt 0:01:21]} Nf3 {[%emt 0:01:28]} 36. Rfh1 {[%emt 0:05:17]} Nxh4+ {[%emt 0:01:24]} 37. Rxh4 {[%emt 0:00:10]} g5 {[%emt 0:00:50]} 38. Rh3 {[%emt 0:02:11]} e3+ {[%emt 0:00:19]} 39. Kf1 {[%emt 0:00:48]} Bg2+ {[%emt 0:00:19]} 40. Kxg2 {[%emt 0:01:14]} e2 {[%emt 0:30:04]} 41. Rh1 {[%emt 0:31:48]} e1=Q {[%emt 0:00:33]} 42. Rxe1 {[%emt 0:00:38]} Qxe1 {[%emt 0:00:07]} 43. Qd7+ {[%emt 0:00:41]} Kg6 {[%emt 0:00:26]} 44. Qxa7 {[%emt 0:00:57]} Qa5 {[%emt 0:01:25]} 45. Qxa5 {[%emt 0:02:18]} bxa5 {[%emt 0:00:05]} 46. a4 {[%emt 0:00:55]} Kf5 {[%emt 0:00:09]} 47. b4 {[%emt 0:00:43]} axb4 {[%emt 0:00:05]} 48. a5 {[%emt 0:01:16]} b3 {[%emt 0:00:06]} 49. a6 {[%emt 0:00:01]} b2 {[%emt 0:00:06]} 0-1